fUSD/lending_fUSD_20240626
["ID","MTS","AMOUNT","RATE_DAILY","PERIOD"]
[330429971,1719388233929,-177.723525,0.0002199,7]
[330429972,1719388233939,-166.3696,0.0002199,7]
[330429973,1719388233949,-166.3696,0.0002199,7]
[330429974,1719388233960,-151.0,0.0002199,7]
[330429975,1719388233971,-151.0,0.0002199,7]
[330429976,1719388233980,-151.220254,0.0002199,7]
[330429977,1719388233990,-151.0,0.0002199,7]
[330429978,1719388233999,-151.0,0.0002199,7]
[330429979,1719388234008,-151.0,0.0002199,7]
[330429980,1719388234018,-263.274681,0.0002199,7]
[330429981,1719388234027,-263.274681,0.0002199,7]
[330429982,1719388234037,-192.23731,0.0002199,7]
[330429983,1719388234046,-192.23731,0.0002199,7]
[330429984,1719388234056,-208.8,0.0002199,7]
[330429985,1719388234066,-570.045659,0.0002199,7]
[330429986,1719388234076,-151.0,0.0002199,7]
[330429987,1719388234086,-570.045659,0.0002199,7]
[330429988,1719388234100,-208.8,0.0002199,7]
[330429989,1719388234111,-151.0,0.0002199,7]
[330429990,1719388234121,-262.44,0.0002199,7]
[330429991,1719388234131,-262.44,0.0002199,7]
[330429992,1719388234141,-459.04255,0.0002199,7]
[330429993,1719388234151,-459.04255,0.0002199,7]
[330429994,1719388234160,-151.0,0.0002199,7]
[330429995,1719388234170,-151.0,0.0002199,7]
[330429996,1719388234180,-560.418484,0.0002199,7]
[330429997,1719388234190,-151.0,0.0002199,7]
[330429998,1719388234200,-151.0,0.0002199,7]
[330429999,1719388234211,-560.418484,0.0002199,7]
[330430000,1719388234221,-289.358834,0.0002199,7]
[330430001,1719388234231,-289.358834,0.0002199,7]
[330430002,1719388234241,-151.0,0.0002199,7]
[330430003,1719388234251,-151.0,0.0002199,7]
[330430004,1719388234260,-151.0,0.0002199,7]
[330430005,1719388234271,-151.0,0.0002199,7]
[330430006,1719388234282,-159.534837,0.0002199,7]
[330430007,1719388234292,-188.417107,0.0002199,7]
[330430008,1719388234302,-151.0,0.0002199,7]
[330430009,1719388234312,-159.534837,0.0002199,7]
[330430010,1719388234321,-151.0,0.0002199,7]
[330430011,1719388234332,-188.417107,0.0002199,7]
[330430012,1719388234347,-269.183168,0.0002199,7]
[330430013,1719388234357,-294.861841,0.0002199,7]
[330430014,1719388234368,-269.183168,0.0002199,7]
[330430015,1719388234378,-294.861841,0.0002199,7]
[330430016,1719388234391,-248.38172,0.0002199,7]
[330430017,1719388234403,-248.38172,0.0002199,7]
[330430018,1719388234413,-345.702425,0.0002199,7]
[330430019,1719388234423,-345.702425,0.0002199,7]
[330430020,1719388234434,-155.001821,0.0002199,7]
[330430021,1719388234444,-155.001821,0.0002199,7]
[330430022,1719388234456,-151.0,0.0002199,7]
[330430023,1719388234466,-165.888511,0.0002199,7]
[330430024,1719388234475,-165.888511,0.0002199,7]
[330430025,1719388234486,-593.898491,0.0002199,7]
[330430026,1719388234495,-593.898491,0.0002199,7]
[330430027,1719388234505,-1210.685899,0.0002199,7]
[330430028,1719388234515,-1210.685899,0.0002199,7]
[330430029,1719388234526,-326.845888,0.0002199,7]
[330430030,1719388234536,-326.845888,0.0002199,7]
[330430031,1719388234546,-151.0,0.0002199,7]
[330430032,1719388234555,-727.733228,0.0002199,7]
[330430033,1719388234565,-151.0,0.0002199,7]
[330430034,1719388234575,-727.733228,0.0002199,7]
[330430035,1719388234587,-233.695034,0.0002199,7]
[330430036,1719388234597,-151.0,0.0002199,7]
[330430037,1719388234607,-356.516397,0.0002199,7]
[330430038,1719388234621,-233.695034,0.0002199,7]
[330430039,1719388234631,-356.516397,0.0002199,7]
[330430040,1719388234641,-151.0,0.0002199,7]
[330430041,1719388234651,-215.233797,0.0002199,7]
[330430042,1719388234662,-151.0,0.0002199,7]
[330430043,1719388234672,-215.233797,0.0002199,7]
[330430044,1719388234682,-151.0,0.0002199,7]
[330430045,1719388234692,-451.819216,0.0002199,7]
[330430046,1719388234702,-451.819216,0.0002199,7]
[330430047,1719388234714,-663.899323,0.0002199,7]
[330430048,1719388234724,-663.899323,0.0002199,7]
[330430049,1719388234733,-151.0,0.0002199,7]
[330430050,1719388234744,-169.358558,0.0002199,7]
[330430051,1719388234753,-151.0,0.0002199,7]
[330430052,1719388234763,-151.0,0.0002199,7]
[330430053,1719388234773,-151.0,0.0002199,7]
[330430054,1719388234783,-169.358558,0.0002199,7]
[330430055,1719388234793,-151.0,0.0002199,7]
[330430056,1719388234803,-151.0,0.0002199,7]
[330430057,1719388234813,-151.0,0.0002199,7]
[330430058,1719388234823,-151.0,0.0002199,7]
[330430059,1719388234833,-151.0,0.0002199,7]
[330430060,1719388234843,-151.0,0.0002199,7]
[330430061,1719388234852,-223.86567,0.0002199,7]
[330430062,1719388235231,-151.0,0.0002199,7]
[330430063,1719388235240,-151.0,0.0002199,7]
[330430064,1719388235250,-277.044006,0.0002199,7]
[330430065,1719388235260,-1363.847456,0.0002199,7]
[330430066,1719388235270,-151.0,0.0002199,7]
[330430067,1719388235279,-1363.847456,0.0002199,7]
[330430068,1719388235288,-151.0,0.0002199,7]
[330430069,1719388235298,-151.0,0.0002199,7]
[330430070,1719388235309,-648.931833,0.0002199,7]
[330430071,1719388235319,-151.0,0.0002199,7]
[330430072,1719388235332,-648.931833,0.0002199,7]
[330430073,1719388235342,-151.0,0.0002199,7]
[330430074,1719388235351,-151.0,0.0002199,7]
[330430075,1719388235360,-151.0,0.0002199,7]
[330430076,1719388235371,-151.0,0.0002199,7]
[330430077,1719388235381,-168.697721,0.0002199,7]
[330430078,1719388235390,-168.697721,0.0002199,7]
[330430079,1719388235400,-151.0,0.0002199,7]
[330430080,1719388235411,-2714.731324,0.0002199,7]
[330430081,1719388235421,-2714.731324,0.0002199,7]
[330430082,1719388235430,-163.15,0.0002199,2]
[330430083,1719388235440,-150.01,0.00021997,2]
[330430084,1719388235449,-1525.46363147,0.00021997,2]
[330430085,1719388235459,-365.176,0.00021998,2]
[330430086,1719388235468,-1424.44476162,0.00021999,10]
[330430087,1719388235478,-24269.42340521,0.00022,4]
[330430088,1719388236395,-367.67329241,0.00022,4]
[330430089,1719388236592,-0.38132945,0.00022,4]
[330430090,1719388236604,-277.94262863,0.00022,4]
[330430091,1719388236616,-2858.1040834,0.00022,4]
[330430092,1719388236627,-453.51,0.00022,4]
[330430093,1719388236638,-12475.02727996,0.00022,4]
[330430099,1719388238979,-1878.113,0.00021775,2]
[330430100,1719388238989,-89281.74222989,0.00022,7]
[330430101,1719388239039,-17469.35320085,0.00022,7]
[330430102,1719388239049,-387.51668956,0.00022,5]
[330430103,1719388239059,-47774.93720739,0.00022,4]
[330430104,1719388240071,-219.48903513,0.000219,2]
[330430105,1719388240081,-483.23441676,0.00022,4]
[330430106,1719388240129,-2213.63470269,0.00022,4]
[330430107,1719388240241,-674.77624646,0.00022,4]
[330430108,1719388240362,-1217.89072931,0.00022,4]
[330430109,1719388240374,-3223.9677333,0.00022,4]
[330430128,1719388243517,-226.09763989,0.00021395,2]
[330430129,1719388243527,-1144.09772361,0.00021997,2]
[330430130,1719388243536,-7083.32837503,0.00022,4]
[330430178,1719388246229,-250.0,0.00020607,2]
[330430179,1719388246239,-340.82,0.00021195,2]
[330430180,1719388246251,-885.86,0.00021195,2]
[330430181,1719388246260,-765.21245401,0.000219,2]
[330430203,1719388247294,-619.20103633,0.000219,2]
[330430204,1719388247303,-858.0732927,0.00021997,2]
[330430205,1719388247315,-1670.88426307,0.00022,4]
[330430206,1719388247342,-2723.6,0.00022,4]
[330430207,1719388247386,-940.63593061,0.00022,4]
[330430210,1719388396278,207.533595,0.00025993,120]
[330430222,1719388867860,547736.20541619,0.00013999,2]
[330430226,1719388972898,19811.53364497,0.00013999,2]
[330430229,1719389249168,2064.3,0.00026,120]
[330430240,1719389432311,-2205.41462552,0.00016968,2]
[330430241,1719389432320,-546.52,0.00017026,2]
[330430242,1719389432330,-200.0,0.00017032,2]
[330430243,1719389432339,-861.76,0.00017084,2]
[330430244,1719389432349,-150.0,0.00017116,2]
[330430245,1719389432358,-300.0,0.00017116,2]
[330430246,1719389432367,-3560.04226881,0.00017117,2]
[330430247,1719389432378,-4228.0863352,0.00017117,2]
[330430248,1719389432393,-658.25,0.00017117,2]
[330430249,1719389432408,-15453.62139599,0.00017117,2]
[330430250,1719389432417,-175.17,0.00017117,2]
[330430251,1719389432426,-661.49,0.00017252,2]
[330430252,1719389432437,-200.0,0.000177,6]
[330430253,1719389432446,-717.75,0.0001772,2]
[330430254,1719389432454,-500.0,0.000178,6]
[330430255,1719389432463,-153.02,0.00017835,2]
[330430256,1719389432472,-153.02,0.00017886,2]
[330430257,1719389432482,-353.5,0.000179,2]
[330430258,1719389432491,-800.0,0.000179,6]
[330430259,1719389432500,-7189.7871,0.000179,2]
[330430260,1719389432510,-2817.6182,0.000179,2]
[330430261,1719389432519,-306.61965133,0.00017916,2]
[330430262,1719389432529,-4443.95961641,0.00017916,2]
[330430263,1719389432538,-165.39606664,0.00017916,2]
[330430264,1719389432548,-2000.58716264,0.00017916,2]
[330430265,1719389432558,-153.02,0.00017938,2]
[330430266,1719389432568,-153.02,0.0001799,2]
[330430267,1719389432579,-184.4312977,0.0001799,2]
[330430268,1719389432589,-39991.1539734,0.00018,2]
[330430269,1719389432602,-32980.41639929,0.00018,2]
[330430272,1719389432623,-460.43123519,0.00018,2]
[330430275,1719389432638,-385.01912969,0.00018,2]
[330430277,1719389432649,-8980.97957088,0.00018,2]
[330430279,1719389432660,-328.8373251,0.00018,2]
[330430281,1719389432671,-24051.008762,0.00018,2]
[330430283,1719389432686,-12383.09270712,0.00018,2]
[330430287,1719389432710,-1085.42033485,0.00018,2]
[330430290,1719389432722,-898299.64599032,0.00018,2]
[330430294,1719389432733,-223181.65928962,0.00018,2]
[330430347,1719389438290,-712.08271485,0.00018,2]
[330430348,1719389438302,-1032.40567914,0.00018,2]
[330430349,1719389438315,-1001.48724109,0.00018,2]
[330430350,1719389438408,-347.290002,0.00018,2]
[330430351,1719389438468,-2168.73738276,0.00018,2]
[330430352,1719389438479,-1025.93346629,0.00018,2]
[330430353,1719389438492,-2084.0327375,0.00018,2]
[330430354,1719389438504,-2158.98320904,0.00018,2]
[330430355,1719389440297,-519.19,0.00016244,2]
[330430356,1719389440307,-158.81,0.00018,2]
[330430357,1719389440412,-505.53116172,0.00018,2]
[330430358,1719389440423,-5344.18707082,0.00018,2]
[330430359,1719389440435,-939.63137312,0.00018,2]
[330430360,1719389440454,-3157.009155,0.00018,2]
[330430361,1719389440465,-2191.28868631,0.00018,2]
[330430362,1719389440478,-1692.5,0.00018,2]
[330430363,1719389440536,-602.18225794,0.00018,2]
[330430364,1719389440547,-2306.86256325,0.00018,2]
[330430365,1719389440572,-2487.46430367,0.00018,2]
[330430366,1719389440585,-3540.07767609,0.00018,2]
[330430377,1719389446425,-3148.79085093,0.00016926,2]
[330430378,1719389446434,-179.53343583,0.00017916,2]
[330430379,1719389446592,-656.07058242,0.00017916,2]
[330430380,1719389446602,-38.04886869,0.00018,2]
[330430381,1719389446649,-538.45756399,0.00018,2]
[330430382,1719389446661,-4450.5764557,0.00018,2]
[330430394,1719389577822,92650.0,0.00025,60]
[330430395,1719390201035,2334.9269769,0.00025,120]
[330430396,1719390425212,165.82,0.00024933,120]
[330430421,1719390631604,-524.08,0.00014685,2]
[330430422,1719390631615,-281.5182,0.00016234,2]
[330430423,1719390631624,-2734.44227111,0.00016582,2]
[330430424,1719390631707,-2212.0993828,0.00016582,2]
[330430425,1719390631720,-5053.45834609,0.00016582,2]
[330430426,1719390631730,-330.74,0.00016586,2]
[330430427,1719390631740,-165.82,0.00016622,2]
[330430428,1719390631750,-150.0,0.0001664,2]
[330430429,1719390631759,-13351.03862675,0.00016641,2]
[330430430,1719390631772,-2604.11954178,0.00016641,2]
[330430431,1719390631788,-7944.84183147,0.00016641,2]
[330430432,1719390631797,-736.81225318,0.00016865,2]
[330430433,1719390631807,-524.08,0.00016949,2]
[330430434,1719390631817,-250.0,0.00017037,2]
[330430435,1719390631827,-1852.42,0.00017101,2]
[330430436,1719390631836,-261.64,0.00017101,2]
[330430437,1719390631845,-150.0,0.00017129,2]
[330430438,1719390631855,-2537.72,0.00017151,2]
[330430439,1719390631864,-2000.0,0.00017168,3]
[330430440,1719390631874,-250.0,0.0001718,2]
[330430441,1719390631885,-153.02,0.00017223,2]
[330430442,1719390631895,-153.02,0.00017287,2]
[330430443,1719390631904,-153.02,0.00017351,2]
[330430444,1719390631914,-153.02,0.00017415,2]
[330430445,1719390631923,-153.02,0.00017479,2]
[330430446,1719390631933,-153.02,0.00017543,2]
[330430447,1719390631942,-153.02,0.00017608,2]
[330430448,1719390631951,-153.02,0.00017672,2]
[330430449,1719390631960,-153.02,0.00017736,2]
[330430450,1719390631971,-383.3117566,0.00017763,2]
[330430451,1719390631980,-153.02,0.000178,2]
[330430452,1719390631990,-1067.97793,0.0001782,2]
[330430453,1719390631999,-153.02,0.00017864,2]
[330430455,1719390632008,-5191.2482,0.000179,2]
[330430457,1719390632023,-2700.6402,0.000179,2]
[330430459,1719390632033,-668.4832146,0.000179,2]
[330430461,1719390632044,-3111.45593949,0.000179,2]
[330430463,1719390632057,-432.92,0.000179,2]
[330430469,1719390632141,-672.22684482,0.000179,2]
[330430470,1719390632151,-165.3960666,0.000179,2]
[330430471,1719390632161,-1665.73708858,0.000179,2]
[330430472,1719390632190,-1381.57291142,0.000179,2]
[330430473,1719390632200,-153.02,0.00017928,2]
[330430474,1719390632210,-190.85369924,0.00017956,2]
[330430475,1719390632220,-324.33804656,0.00017956,2]
[330430476,1719390632229,-261.64,0.00017956,2]
[330430477,1719390632238,-237.84894069,0.0001799,2]
[330430478,1719390632248,-153.02,0.00017992,2]
[330430479,1719390632257,-682393.75571357,0.00018,2]
[330430480,1719390632267,-153.02,0.00018056,2]
[330430481,1719390632276,-153.02,0.0001812,2]
[330430482,1719390632286,-217.78,0.00018178,2]
[330430483,1719390632296,-164.7,0.00018186,2]
[330430484,1719390632305,-1000.0,0.00018264,2]
[330430485,1719390632315,-183.0,0.00018304,2]
[330430486,1719390632325,-4216.60278427,0.00018344,2]
[330430487,1719390632334,-165.3960666,0.000184,2]
[330430488,1719390632343,-740.15,0.0001841,2]
[330430489,1719390632353,-164.7,0.00018667,2]
[330430490,1719390632362,-165.82,0.000187,2]
[330430491,1719390632371,-158.19,0.00018731,2]
[330430492,1719390632381,-4216.60278427,0.00018789,2]
[330430493,1719390632390,-261.64,0.00018812,2]
[330430494,1719390632399,-668.48321459,0.000189,2]
[330430495,1719390632409,-165.3960666,0.000189,2]
[330430496,1719390632418,-164.7,0.00019147,2]
[330430497,1719390632428,-250.0,0.00019178,2]
[330430498,1719390632438,-524.08,0.00019213,2]
[330430499,1719390632448,-4216.60278427,0.00019233,2]
[330430500,1719390632457,-543.33750489,0.00019275,2]
[330430501,1719390632467,-165.3960666,0.000194,2]
[330430502,1719390632476,-164.7,0.00019628,2]
[330430503,1719390632486,-261.64,0.00019667,2]
[330430504,1719390632496,-4216.60278427,0.00019678,2]
[330430505,1719390632505,-668.48321459,0.000199,2]
[330430506,1719390632515,-165.3960666,0.000199,2]
[330430507,1719390632524,-190.85369923,0.00019927,2]
[330430508,1719390632534,-3336.0,0.0002,4]
[330430509,1719390632546,-164.7,0.00020108,2]
[330430510,1719390632555,-4216.60278427,0.00020122,2]
[330430511,1719390632565,-1067.97793,0.0002032,2]
[330430512,1719390632574,-165.3960666,0.000204,2]
[330430513,1719390632584,-261.64,0.00020522,2]
[330430514,1719390632593,-1000.0,0.00020547,2]
[330430515,1719390632603,-4216.60278427,0.00020567,2]
[330430516,1719390632613,-155.0,0.00020587,2]
[330430517,1719390632622,-164.7,0.00020588,2]
[330430518,1719390632632,-245.97351517,0.00020698,2]
[330430519,1719390632642,-155.0,0.00020699,2]
[330430520,1719390632651,-212.32008153,0.00020713,2]
[330430521,1719390632661,-269.0291193,0.00020777,2]
[330430522,1719390632671,-165.82,0.00020778,2]
[330430523,1719390632680,-430.89547468,0.00020799,5]
[330430524,1719390632690,-599.0,0.000208,2]
[330430525,1719390632699,-22962.80178504,0.000208,3]
[330430535,1719390637579,-587.0,0.000208,2]
[330430536,1719390637589,-39999.87102933,0.000208,3]
[330430537,1719390637600,-785.60005,0.000208,3]
[330430538,1719390637611,-25454.02277005,0.000208,3]
[330430539,1719390637623,-18262.74345492,0.000208,3]
[330430540,1719390637634,-10987.39192041,0.000208,3]
[330430541,1719390637645,-4894.76902435,0.000208,3]
[330430542,1719390637660,-326.82458718,0.000208,3]
[330430543,1719390637670,-380.21994964,0.000208,3]
[330430544,1719390637686,-404.08222465,0.000208,3]
[330430545,1719390637697,-914.0500234,0.000208,3]
[330430546,1719390637708,-2166.78342138,0.000208,3]
[330430547,1719390637720,-1295.8075908,0.000208,3]
[330430548,1719390637787,-5556.73676619,0.000208,3]
[330430549,1719390637798,-96041.96561193,0.000208,3]
[330430550,1719390637809,-850.41686623,0.000208,3]
[330430551,1719390637821,-778.63202683,0.000208,3]
[330430552,1719390637833,-1251.34130064,0.000208,3]
[330430553,1719390637844,-729.82228752,0.000208,3]
[330430554,1719390637855,-2301.19829752,0.000208,3]
[330430555,1719390637866,-806.42263667,0.000208,3]
[330430556,1719390637877,-542.62704013,0.000208,3]
[330430557,1719390637906,-6628.30439943,0.000208,3]
[330430558,1719390637917,-1009.91881608,0.000208,3]
[330430567,1719390639651,-331.90481602,0.00017534,2]
[330430568,1719390640117,-83.17417564,0.00017534,2]
[330430569,1719390640127,-360.26319269,0.000208,3]
[330430570,1719390640139,-571.99609623,0.000208,3]
[330430571,1719390640167,-2381.64540269,0.000208,3]
[330430572,1719390640182,-1873.20208707,0.000208,3]
[330430573,1719390640192,-12493.95825036,0.000208,2]
[330430574,1719390640231,-453.70033376,0.000208,2]
[330430575,1719390640243,-1681.87448683,0.000208,2]
[330430576,1719390640378,-3181.12323149,0.000208,2]
[330430577,1719390640390,-668.48321459,0.000209,2]
[330430578,1719390640401,-4926.42244026,0.000209,3]
[330430579,1719390640411,-165.3960666,0.000209,2]
[330430580,1719390640421,-1250.0,0.00021,2]
[330430581,1719390640432,-202.692374,0.00021,2]
[330430582,1719390640442,-4216.60278427,0.00021011,2]
[330430583,1719390640453,-164.7,0.00021069,2]
[330430584,1719390640464,-165.3960666,0.000214,2]
[330430585,1719390640476,-4216.60278427,0.00021456,2]
[330430586,1719390640486,-524.08,0.00021477,2]
[330430587,1719390640496,-164.7,0.00021549,2]
[330430588,1719390640507,-353.0,0.000216,3]
[330430589,1719390640517,-499.67575362,0.00021643,2]
[330430590,1719390640528,-155.34,0.00021644,2]
[330430591,1719390640538,-153.39,0.00021644,2]
[330430592,1719390640550,-472.37,0.00021644,2]
[330430593,1719390640560,-532.91398684,0.00021789,2]
[330430594,1719390640570,-450.32528097,0.00021799,2]
[330430595,1719390640581,-500.0,0.00021799,2]
[330430596,1719390640591,-500.0,0.00021822,2]
[330430597,1719390640602,-1000.0,0.00021873,2]
[330430598,1719390640612,-10892.1504634,0.0002189,3]
[330430599,1719390640622,-821.07040671,0.0002189,3]
[330430600,1719390640632,-190.85369923,0.00021897,2]
[330430601,1719390640642,-944.34128653,0.00021899,2]
[330430602,1719390640652,-543.3375049,0.000219,3]
[330430603,1719390640662,-212.32008153,0.000219,2]
[330430604,1719390640672,-341.05268883,0.000219,2]
[330430605,1719390640682,-668.48321459,0.000219,2]
[330430606,1719390640693,-3372.81616419,0.000219,2]
[330430607,1719390640703,-4216.60278427,0.000219,2]
[330430608,1719390640713,-165.3960666,0.000219,2]
[330430609,1719390640724,-324.33804655,0.000219,2]
[330430610,1719390640734,-500.0,0.00021917,4]
[330430611,1719390640744,-32676.4513903,0.00021964,3]
[330430612,1719390640757,-1642.14081342,0.00021964,3]
[330430613,1719390640768,-372.997,0.00021974,2]
[330430614,1719390640779,-1293.0,0.00021974,2]
[330430615,1719390640789,-2410.0,0.00021974,2]
[330430616,1719390640799,-152.747,0.00021974,2]
[330430617,1719390640809,-1982.0,0.00021974,2]
[330430618,1719390640819,-547.0,0.00021974,2]
[330430619,1719390640829,-3198.0,0.00021974,2]
[330430620,1719390640839,-1069.0,0.00021974,2]
[330430621,1719390640849,-1830.0,0.00021974,2]
[330430622,1719390640859,-359.0,0.00021974,2]
[330430623,1719390640869,-291.0,0.00021974,2]
[330430624,1719390640879,-5170.0,0.00021974,2]
[330430625,1719390640890,-1655.0,0.00021974,2]
[330430626,1719390640900,-5799.0,0.00021974,2]
[330430627,1719390640911,-38180.0,0.00021974,2]
[330430628,1719390640921,-1661.0,0.00021974,2]
[330430629,1719390640932,-1272.0,0.00021974,2]
[330430630,1719390640943,-10892.1504634,0.0002199,3]
[330430631,1719390640954,-821.07040671,0.0002199,3]
[330430632,1719390640964,-5747.49284697,0.0002199,3]
[330430633,1719390640975,-858.0732927,0.00021997,2]
[330430634,1719390640986,-53375.54771537,0.00022,7]
[330430635,1719390640997,-193.75834478,0.00022,5]
[330430636,1719390641009,-23715.08850859,0.00022,4]
[330430640,1719390642721,-155.0,0.00021643,2]
[330430641,1719390642733,-377.148705,0.00021974,2]
[330430643,1719390642745,-819.851295,0.00021974,2]
[330430645,1719390642756,-4065.83103481,0.00022,4]
[330430647,1719390642770,-1628.8462697,0.00022,4]
[330430648,1719390642807,-338.05772,0.00022,4]
[330430649,1719390642928,-367314.64384937,0.00022,4]
[330430650,1719390642940,-1278918.66550834,0.00022,4]
[330430651,1719390642952,-302.0,0.00022,4]
[330430652,1719390643074,-1310.78135519,0.00022,4]
[330430653,1719390643089,-265.6000002,0.00022,4]
[330430654,1719390643103,-319.999995,0.00022,4]
[330430655,1719390643120,-392.47847716,0.00022,4]
[330430656,1719390643132,-15400.16893416,0.00022,4]
[330430657,1719390643149,-653.31270692,0.00022,4]
[330430658,1719390643161,-615.0,0.00022,4]
[330430659,1719390643173,-4425.20529281,0.00022,4]
[330430660,1719390643203,-8154.7196893,0.00022,4]
[330430661,1719390643226,-12486.54590828,0.00022,4]
[330430662,1719390643238,-954220.2000654,0.00022,4]
[330430670,1719390645787,-2429.67943201,0.000219,2]
[330430671,1719390645796,-4120.34040493,0.00022,4]
[330430672,1719390645807,-1240.61660761,0.00022,4]
[330430673,1719390645819,-403.53386833,0.00022,4]
[330430674,1719390645843,-2724.73628961,0.00022,4]
[330430675,1719390645854,-3741.21980841,0.00022,4]
[330430676,1719390645865,-4520.61425116,0.00022,4]
[330430677,1719390645954,-780.38384679,0.00022,4]
[330430678,1719390645984,-1150.77093544,0.00022,4]
[330430679,1719390796286,200.0,0.00025975,120]
[330430680,1719390803838,200.0,0.00025866,120]
[330430681,1719390824417,751069.30902959,0.00014,2]
[330430682,1719390845427,-150.0,0.000118,2]
[330430683,1719390852547,-150.0,0.000118,2]
[330430684,1719390853135,-150.0,0.000118,2]
[330430685,1719390853621,-150.0,0.000118,2]
[330430686,1719390854119,-150.0,0.000118,2]
[330430687,1719390854594,-150.0,0.000118,2]
[330430688,1719390855154,-150.0,0.000118,2]
[330430689,1719390855584,-150.0,0.000118,2]
[330430690,1719390856069,-150.0,0.000118,2]
[330430691,1719390857149,-150.0,0.000118,2]
[330430692,1719390858249,-150.0,0.000118,2]
[330430694,1719390960899,348.63,0.00025631,120]
[330430751,1719391762110,-150.0,0.00011799,2]
[330430752,1719391762130,-300.0,0.00011799,2]
[330430753,1719391762150,-2367.8976,0.000118,2]
[330430777,1719391833395,-585.88473432,0.000118,2]
[330430778,1719391833521,-1331.32137545,0.000118,2]
[330430779,1719391833534,-14198.30525229,0.000118,2]
[330430780,1719391833545,-484.32,0.000118,2]
[330430781,1719391833557,-503.022718,0.000118,2]
[330430782,1719391833594,-685.05424735,0.000118,2]
[330430783,1719391833618,-4521.52776902,0.000118,2]
[330430784,1719391833627,-181.13817157,0.00012979,2]
[330430785,1719391833657,-28.86182843,0.00012979,2]
[330430786,1719391833666,-8423.37,0.00013169,2]
[330430787,1719391833676,-250.0,0.00013403,2]
[330430788,1719391833686,-2444.75,0.00013485,2]
[330430789,1719391833695,-1292.23,0.00013485,2]
[330430790,1719391833704,-23900.0,0.0001354,2]
[330430791,1719391833714,-200.0,0.00013699,2]
[330430792,1719391833728,-4598.75,0.00013699,2]
[330430793,1719391833738,-477.87,0.00013816,2]
[330430794,1719391833748,-150.0,0.00013863,2]
[330430795,1719391833758,-219.97,0.0001389,3]
[330430796,1719391833767,-3286.3388,0.000139,2]
[330430797,1719391833777,-2618.1681,0.000139,2]
[330430798,1719391833787,-222.138,0.000139,2]
[330430799,1719391833797,-9232.9229,0.000139,2]
[330430800,1719391833807,-24546.1676,0.000139,2]
[330430801,1719391833817,-1510.75029683,0.000139,2]
[330430802,1719391833827,-499.99,0.000139,2]
[330430803,1719391833837,-164.37168205,0.000139,2]
[330430804,1719391833847,-745.1947995,0.000139,2]
[330430805,1719391833856,-167.11262213,0.00013903,2]
[330430806,1719391833866,-177.51,0.00013949,2]
[330430807,1719391833876,-6455.538,0.0001399,2]
[330430808,1719391833886,-6270.8,0.0001399,2]
[330430809,1719391833897,-6270.8,0.0001399,2]
[330430810,1719391833907,-6270.8,0.0001399,2]
[330430811,1719391833917,-949375.97246376,0.00014,2]
[330430812,1719391833930,-39070.12791959,0.00014,2]
[330430813,1719391833941,-7576.47257359,0.00014,2]
[330430814,1719391833953,-43718.82591255,0.00014,2]
[330430815,1719391833970,-898.53028455,0.00014,2]
[330430816,1719391833982,-1004.35381733,0.00014,2]
[330430817,1719391833994,-258.76851609,0.00014,2]
[330430818,1719391834018,-1067.35964128,0.00014,2]
[330430819,1719391834031,-1096.62478645,0.00014,2]
[330430820,1719391834090,-3913.38875614,0.00014,2]
[330430821,1719391834103,-155944.39260755,0.00014,2]
[330430822,1719391834115,-15728.47517638,0.00014,2]